fUSD/lending_fUSD_20260503
["ID","MTS","AMOUNT","RATE_DAILY","PERIOD"]
[421479430,1777741842000,-425.63,0.00031506,2]
[421479431,1777741842000,-520.18372505,0.00031506,2]
[421479436,1777741842000,-953.0,0.00031506,2]
[421479435,1777741842000,-500.0,0.00031506,2]
[421479438,1777741842000,-953.0,0.00031506,2]
[421479441,1777741842000,-500.0,0.00031506,2]
[421479440,1777741842000,-500.0,0.00031506,2]
[421479444,1777741842000,-567.93104203,0.00031506,2]
[421479442,1777741842000,-953.0,0.00031506,2]
[421479443,1777741842000,-500.0,0.00031506,2]
[421479446,1777741842000,-84.93104203,0.00031506,2]
[421479447,1777741842000,-868.06895797,0.00031506,2]
[421479445,1777741842000,-385.06895797,0.00031506,2]
[421479448,1777741842000,-474.52601664,0.00031506,2]
[421479437,1777741842000,-500.0,0.00031506,2]
[421479457,1777741843000,332.821751,0.00029282,120]
[421479455,1777741843000,-25.47398336,0.00031506,2]
[421479456,1777741843000,-289.15627373,0.00031506,2]
[421479460,1777741845000,-502.0,0.00027137,2]
[421479491,1777741846000,-953.0,0.00031506,2]
[421479490,1777741846000,-500.0,0.00031506,2]
[421479486,1777741846000,-953.0,0.00031506,2]
[421479484,1777741846000,-953.0,0.00031506,2]
[421479489,1777741846000,-356.28595794,0.00031506,2]
[421479487,1777741846000,-500.0,0.00031506,2]
[421479488,1777741846000,-596.71404206,0.00031506,2]
[421479479,1777741846000,-953.0,0.00031506,2]
[421479492,1777741846000,-500.0,0.00031506,2]
[421479481,1777741846000,-175.6440517,0.00031506,2]
[421479482,1777741846000,-150.0,0.00031506,2]
[421479480,1777741846000,-150.0,0.00031506,2]
[421479476,1777741846000,-500.0,0.00031506,2]
[421479485,1777741846000,-500.0,0.00031506,2]
[421479474,1777741846000,-37.21664376,0.00031506,2]
[421479464,1777741846000,-663.84372627,0.00031506,2]
[421479475,1777741846000,-953.0,0.00031506,2]
[421479493,1777741846000,-953.0,0.00031506,2]
[421479461,1777741846000,-502.0,0.00028366,3]
[421479465,1777741846000,-500.0,0.00031506,2]
[421479466,1777741846000,-953.0,0.00031506,2]
[421479462,1777741846000,-502.0,0.00029596,4]
[421479467,1777741846000,-500.0,0.00031506,2]
[421479478,1777741846000,-500.0,0.00031506,2]
[421479463,1777741846000,-502.0,0.00030825,6]
[421479469,1777741846000,-500.0,0.00031506,2]
[421479471,1777741846000,-610.90102555,0.00031506,2]
[421479470,1777741846000,-342.09897445,0.00031506,2]
[421479472,1777741846000,-561.36024745,0.00031506,2]
[421479473,1777741846000,-354.42310879,0.00031506,2]
[421479477,1777741846000,-953.0,0.00031506,2]
[421479468,1777741846000,-953.0,0.00031506,2]
[421479495,1777741846000,-809.36632155,0.00031506,2]
[421479483,1777741846000,-500.0,0.00031506,2]
[421479494,1777741846000,-500.0,0.00031506,2]
[421479515,1777741846000,-150.0,0.00031506,2]
[421479516,1777741846000,-150.0,0.00031506,2]
[421479514,1777741846000,-150.0,0.00031506,2]
[421479517,1777741846000,-150.0,0.00031506,2]
[421479525,1777741846000,-150.0,0.00031673,5]
[421479519,1777741846000,-156.36257038,0.00031506,2]
[421479511,1777741846000,-150.0,0.00031506,2]
[421479518,1777741846000,-150.0,0.00031506,2]
[421479523,1777741846000,-564.01359232,0.000316,2]
[421479520,1777741846000,-537.0,0.00031506,30]
[421479522,1777741846000,-178.5831447,0.00031587,2]
[421479527,1777741846000,-1331.55,0.000317,7]
[421479528,1777741846000,-1000.51,0.000318,30]
[421479496,1777741846000,-461.06225528,0.00031506,2]
[421479521,1777741846000,-332.0,0.00031506,30]
[421479512,1777741846000,-150.0,0.00031506,2]
[421479524,1777741846000,-161.20711471,0.00031624,2]
[421479506,1777741846000,-150.0,0.00031506,2]
[421479508,1777741846000,-150.0,0.00031506,2]
[421479498,1777741846000,-150.0,0.00031506,2]
[421479501,1777741846000,-150.0,0.00031506,2]
[421479500,1777741846000,-150.0,0.00031506,2]
[421479499,1777741846000,-150.0,0.00031506,2]
[421479502,1777741846000,-150.0,0.00031506,2]
[421479504,1777741846000,-150.0,0.00031506,2]
[421479497,1777741846000,-150.0,0.00031506,2]
[421479526,1777741846000,-168.19,0.000317,7]
[421479507,1777741846000,-150.0,0.00031506,2]
[421479509,1777741846000,-150.0,0.00031506,2]
[421479513,1777741846000,-150.0,0.00031506,2]
[421479505,1777741846000,-150.0,0.00031506,2]
[421479503,1777741846000,-150.0,0.00031506,2]
[421479510,1777741846000,-150.0,0.00031506,2]
[421479567,1777741847000,-13541.0,0.0003224,2]
[421479566,1777741847000,-3767.80504332,0.00032228,2]
[421479569,1777741847000,-150.246,0.00032317,32]
[421479568,1777741847000,-1000.51,0.0003228,30]
[421479565,1777741847000,-12160.95918912,0.00032228,2]
[421479562,1777741847000,-157.0,0.00032221,30]
[421479563,1777741847000,-205.0,0.00032221,30]
[421479564,1777741847000,-360.0,0.00032221,30]
[421479560,1777741847000,-184.0,0.00032221,30]
[421479570,1777741847000,-3408.051,0.00032317,32]
[421479557,1777741847000,-829.0,0.00032217,30]
[421479561,1777741847000,-160.0,0.00032221,30]
[421479571,1777741847000,-3151.65,0.00032318,2]
[421479581,1777741847000,-500.0,0.00032328,2]
[421479573,1777741847000,-500.0,0.00032327,2]
[421479582,1777741847000,-500.0,0.00032328,2]
[421479580,1777741847000,-500.0,0.00032328,2]
[421479577,1777741847000,-500.0,0.00032328,2]
[421479578,1777741847000,-500.0,0.00032328,2]
[421479575,1777741847000,-500.0,0.00032328,2]
[421479574,1777741847000,-500.0,0.00032328,2]
[421479579,1777741847000,-500.0,0.00032328,2]
[421479585,1777741847000,-500.0,0.00032328,2]
[421479583,1777741847000,-500.0,0.00032328,2]
[421479584,1777741847000,-500.0,0.00032328,2]
[421479554,1777741847000,-226.0,0.00032217,30]
[421479572,1777741847000,-500.0,0.00032327,2]
[421479553,1777741847000,-159.0,0.00032217,30]
[421479540,1777741847000,-166.66,0.00031966,2]
[421479559,1777741847000,-250.0,0.00032221,5]
[421479531,1777741847000,-156.3020492,0.00031863,60]
[421479532,1777741847000,-183.5386809,0.00031863,60]
[421479529,1777741847000,-900.0,0.000318,11]
[421479536,1777741847000,-787.91,0.000319,2]
[421479530,1777741847000,-1000.51,0.0003186,30]
[421479533,1777741847000,-170.0985877,0.00031863,60]
[421479534,1777741847000,-154.7005814,0.00031863,60]
[421479535,1777741847000,-1100.0,0.000319,11]
[421479537,1777741847000,-192.06598019,0.00031908,2]
[421479538,1777741847000,-1288.26615815,0.00031913,2]
[421479548,1777741847000,-502.0,0.00032054,7]
[421479586,1777741847000,-342.43630127,0.00032328,2]
[421479556,1777741847000,-158.0,0.00032217,30]
[421479539,1777741847000,-1000.51,0.0003192,30]
[421479543,1777741847000,-1000.51,0.0003198,30]
[421479546,1777741847000,-1000.51,0.0003204,30]
[421479544,1777741847000,-212.10074692,0.00032,120]
[421479545,1777741847000,-1558.0,0.00032008,15]
[421479542,1777741847000,-484.56,0.00031967,3]
[421479547,1777741847000,-934.92184427,0.00032053,2]
[421479550,1777741847000,-1000.51,0.0003216,30]
[421479549,1777741847000,-1000.51,0.000321,30]
[421479552,1777741847000,-781.4,0.0003221,5]
[421479551,1777741847000,-787.91,0.000322,2]
[421479558,1777741847000,-1000.51,0.0003222,30]
[421479555,1777741847000,-159.0,0.00032217,30]
[421479541,1777741847000,-202.6,0.00031967,3]
[421479593,1777741847000,-500.0,0.00032328,2]
[421479576,1777741847000,-500.0,0.00032328,2]
[421479587,1777741847000,-635.75,0.00032328,2]
[421479630,1777741847000,-529.57,0.00032328,2]
[421479631,1777741847000,-500.0,0.00032328,2]
[421479625,1777741847000,-573.58,0.00032328,2]
[421479619,1777741847000,-500.0,0.00032328,2]
[421479624,1777741847000,-500.0,0.00032328,2]
[421479621,1777741847000,-500.0,0.00032328,2]
[421479622,1777741847000,-903.01,0.00032328,2]
[421479623,1777741847000,-500.0,0.00032328,2]
[421479627,1777741847000,-500.0,0.00032328,2]
[421479628,1777741847000,-500.0,0.00032328,2]
[421479629,1777741847000,-500.0,0.00032328,2]
[421479626,1777741847000,-500.0,0.00032328,2]
[421479633,1777741847000,-500.0,0.00032328,2]
[421479643,1777741847000,-573.56,0.00032328,2]
[421479634,1777741847000,-500.0,0.00032328,2]
[421479632,1777741847000,-500.0,0.00032328,2]
[421479635,1777741847000,-500.0,0.00032328,2]
[421479637,1777741847000,-500.0,0.00032328,2]
[421479636,1777741847000,-500.0,0.00032328,2]
[421479640,1777741847000,-500.0,0.00032328,2]
[421479642,1777741847000,-500.0,0.00032328,2]
[421479638,1777741847000,-500.0,0.00032328,2]
[421479641,1777741847000,-500.0,0.00032328,2]
[421479639,1777741847000,-213.0839333,0.00032328,2]
[421479645,1777741847000,-500.0,0.00032328,2]
[421479588,1777741847000,-500.0,0.00032328,2]
[421479644,1777741847000,-500.0,0.00032328,2]
[421479620,1777741847000,-500.0,0.00032328,2]
[421479615,1777741847000,-500.0,0.00032328,2]
[421479646,1777741847000,-1330.84,0.00032328,2]
[421479607,1777741847000,-566.16,0.00032328,2]
[421479591,1777741847000,-500.0,0.00032328,2]
[421479590,1777741847000,-500.0,0.00032328,2]
[421479589,1777741847000,-500.0,0.00032328,2]
[421479592,1777741847000,-289.28040368,0.00032328,2]
[421479595,1777741847000,-500.0,0.00032328,2]
[421479594,1777741847000,-500.0,0.00032328,2]
[421479602,1777741847000,-500.0,0.00032328,2]
[421479598,1777741847000,-1449.56,0.00032328,2]
[421479616,1777741847000,-500.0,0.00032328,2]
[421479596,1777741847000,-153.79193387,0.00032328,2]
[421479601,1777741847000,-500.0,0.00032328,2]
[421479597,1777741847000,-500.0,0.00032328,2]
[421479599,1777741847000,-500.0,0.00032328,2]
[421479600,1777741847000,-237.76480738,0.00032328,2]
[421479603,1777741847000,-500.0,0.00032328,2]
[421479604,1777741847000,-500.0,0.00032328,2]
[421479618,1777741847000,-500.0,0.00032328,2]
[421479612,1777741847000,-500.0,0.00032328,2]
[421479611,1777741847000,-500.0,0.00032328,2]
[421479610,1777741847000,-500.0,0.00032328,2]
[421479617,1777741847000,-500.0,0.00032328,2]
[421479614,1777741847000,-500.0,0.00032328,2]
[421479608,1777741847000,-500.0,0.00032328,2]
[421479613,1777741847000,-500.0,0.00032328,2]
[421479606,1777741847000,-500.0,0.00032328,2]
[421479605,1777741847000,-500.0,0.00032328,2]
[421479609,1777741847000,-500.0,0.00032328,2]
[421479683,1777741848000,-500.0,0.00032328,2]
[421479689,1777741848000,-500.0,0.00032328,2]
[421479686,1777741848000,-500.0,0.00032328,2]
[421479679,1777741848000,-500.0,0.00032328,2]
[421479672,1777741848000,-500.0,0.00032328,2]
[421479681,1777741848000,-500.0,0.00032328,2]
[421479682,1777741848000,-500.0,0.00032328,2]
[421479680,1777741848000,-500.0,0.00032328,2]
[421479671,1777741848000,-500.0,0.00032328,2]
[421479675,1777741848000,-500.0,0.00032328,2]
[421479684,1777741848000,-500.0,0.00032328,2]
[421479685,1777741848000,-500.0,0.00032328,2]
[421479699,1777741848000,-500.0,0.00032328,2]
[421479688,1777741848000,-500.0,0.00032328,2]
[421479691,1777741848000,-500.0,0.00032328,2]
[421479690,1777741848000,-500.0,0.00032328,2]
[421479693,1777741848000,-500.0,0.00032328,2]
[421479692,1777741848000,-500.0,0.00032328,2]
[421479694,1777741848000,-500.0,0.00032328,2]
[421479698,1777741848000,-966.43,0.00032328,2]
[421479695,1777741848000,-500.0,0.00032328,2]
[421479696,1777741848000,-500.0,0.00032328,2]
[421479700,1777741848000,-500.0,0.00032328,2]
[421479677,1777741848000,-500.0,0.00032328,2]
[421479697,1777741848000,-714.23,0.00032328,2]
[421479687,1777741848000,-500.0,0.00032328,2]
[421479673,1777741848000,-500.0,0.00032328,2]
[421479662,1777741848000,-588.68,0.00032328,2]
[421479676,1777741848000,-500.0,0.00032328,2]
[421479701,1777741848000,-538.21,0.00032328,2]
[421479655,1777741848000,-500.0,0.00032328,2]
[421479647,1777741848000,-500.0,0.00032328,2]
[421479651,1777741848000,-500.0,0.00032328,2]
[421479654,1777741848000,-500.0,0.00032328,2]
[421479650,1777741848000,-500.0,0.00032328,2]
[421479653,1777741848000,-500.0,0.00032328,2]
[421479648,1777741848000,-500.0,0.00032328,2]
[421479652,1777741848000,-500.0,0.00032328,2]
[421479649,1777741848000,-500.0,0.00032328,2]
[421479656,1777741848000,-500.0,0.00032328,2]
[421479659,1777741848000,-500.0,0.00032328,2]
[421479657,1777741848000,-864.15,0.00032328,2]
[421479661,1777741848000,-500.0,0.00032328,2]
[421479660,1777741848000,-500.0,0.00032328,2]
[421479666,1777741848000,-500.0,0.00032328,2]
[421479665,1777741848000,-500.0,0.00032328,2]
[421479658,1777741848000,-500.0,0.00032328,2]
[421479663,1777741848000,-500.0,0.00032328,2]
[421479664,1777741848000,-500.0,0.00032328,2]
[421479668,1777741848000,-500.0,0.00032328,2]
[421479678,1777741848000,-500.0,0.00032328,2]
[421479667,1777741848000,-500.0,0.00032328,2]
[421479669,1777741848000,-500.0,0.00032328,2]
[421479670,1777741848000,-500.0,0.00032328,2]
[421479674,1777741848000,-500.0,0.00032328,2]
[421479702,1777741848000,-2694.69,0.00032328,2]
[421479749,1777741848000,-500.0,0.00032328,2]
[421479705,1777741848000,-500.0,0.00032328,2]
[421479733,1777741848000,-500.0,0.00032328,2]
[421479732,1777741848000,-500.0,0.00032328,2]
[421479738,1777741848000,-500.0,0.00032328,2]
[421479739,1777741848000,-500.0,0.00032328,2]
[421479741,1777741848000,-500.0,0.00032328,2]
[421479742,1777741848000,-500.0,0.00032328,2]
[421479740,1777741848000,-500.0,0.00032328,2]
[421479737,1777741848000,-547.94,0.00032328,2]
[421479743,1777741848000,-500.0,0.00032328,2]
[421479744,1777741848000,-500.0,0.00032328,2]
[421479745,1777741848000,-500.0,0.00032328,2]
[421479747,1777741848000,-500.0,0.00032328,2]
[421479748,1777741848000,-500.0,0.00032328,2]
[421479751,1777741848000,-500.0,0.00032328,2]
[421479750,1777741848000,-500.0,0.00032328,2]
[421479754,1777741848000,-500.0,0.00032328,2]
[421479759,1777741848000,-500.0,0.00032328,2]
[421479752,1777741848000,-500.0,0.00032328,2]
[421479753,1777741848000,-500.0,0.00032328,2]
[421479755,1777741848000,-500.0,0.00032328,2]
[421479757,1777741848000,-500.0,0.00032328,2]
[421479756,1777741848000,-500.0,0.00032328,2]
[421479758,1777741848000,-500.0,0.00032328,2]
[421479760,1777741848000,-500.0,0.00032328,2]
[421479706,1777741848000,-500.0,0.00032328,2]
[421479734,1777741848000,-500.0,0.00032328,2]
[421479735,1777741848000,-500.0,0.00032328,2]
[421479746,1777741848000,-500.0,0.00032328,2]
[421479731,1777741848000,-500.0,0.00032328,2]
[421479730,1777741848000,-500.0,0.00032328,2]
[421479712,1777741848000,-308.10711173,0.00032328,2]
[421479703,1777741848000,-500.0,0.00032328,2]
[421479710,1777741848000,-500.0,0.00032328,2]
[421479707,1777741848000,-500.0,0.00032328,2]
[421479711,1777741848000,-500.0,0.00032328,2]
[421479708,1777741848000,-500.0,0.00032328,2]
[421479709,1777741848000,-500.0,0.00032328,2]
[421479714,1777741848000,-500.0,0.00032328,2]
[421479716,1777741848000,-500.0,0.00032328,2]
[421479715,1777741848000,-500.0,0.00032328,2]
[421479724,1777741848000,-260.91664688,0.00032328,2]
[421479713,1777741848000,-500.0,0.00032328,2]
[421479704,1777741848000,-500.0,0.00032328,2]
[421479722,1777741848000,-500.0,0.00032328,2]
[421479717,1777741848000,-500.0,0.00032328,2]
[421479728,1777741848000,-500.0,0.00032328,2]
[421479726,1777741848000,-500.0,0.00032328,2]
[421479736,1777741848000,-500.0,0.00032328,2]
[421479727,1777741848000,-500.0,0.00032328,2]
[421479725,1777741848000,-624.03,0.00032328,2]
[421479729,1777741848000,-500.0,0.00032328,2]
[421479720,1777741848000,-500.0,0.00032328,2]
[421479723,1777741848000,-500.0,0.00032328,2]
[421479718,1777741848000,-500.0,0.00032328,2]
[421479721,1777741848000,-500.0,0.00032328,2]
[421479719,1777741848000,-500.0,0.00032328,2]
[421479796,1777741849000,-500.0,0.00032328,2]
[421479803,1777741849000,-1438.75,0.00032328,2]
[421479815,1777741849000,-500.0,0.00032328,2]
[421479789,1777741849000,-568.4,0.00032328,2]
[421479808,1777741849000,-500.0,0.00032328,2]
[421479797,1777741849000,-500.0,0.00032328,2]
[421479791,1777741849000,-1331.73,0.00032328,2]
[421479793,1777741849000,-500.0,0.00032328,2]
[421479786,1777741849000,-500.0,0.00032328,2]
[421479799,1777741849000,-500.0,0.00032328,2]
[421479807,1777741849000,-500.0,0.00032328,2]
[421479800,1777741849000,-500.0,0.00032328,2]
[421479810,1777741849000,-500.0,0.00032328,2]
[421479804,1777741849000,-500.0,0.00032328,2]
[421479802,1777741849000,-500.0,0.00032328,2]
[421479805,1777741849000,-500.0,0.00032328,2]
[421479806,1777741849000,-500.0,0.00032328,2]
[421479819,1777741849000,-500.0,0.00032328,2]
[421479811,1777741849000,-500.0,0.00032328,2]
[421479809,1777741849000,-185.77820624,0.00032328,2]
[421479814,1777741849000,-500.0,0.00032328,2]
[421479812,1777741849000,-500.0,0.00032328,2]
[421479818,1777741849000,-825.79,0.00032328,2]
[421479813,1777741849000,-384.41898119,0.00032328,2]
[421479794,1777741849000,-500.0,0.00032328,2]
[421479801,1777741849000,-500.0,0.00032328,2]
[421479788,1777741849000,-343.71312794,0.00032328,2]
[421479763,1777741849000,-500.0,0.00032328,2]
[421479790,1777741849000,-500.0,0.00032328,2]
[421479762,1777741849000,-500.0,0.00032328,2]
[421479765,1777741849000,-500.0,0.00032328,2]
[421479766,1777741849000,-500.0,0.00032328,2]
[421479761,1777741849000,-1053.71,0.00032328,2]
[421479764,1777741849000,-13892.26,0.00032328,2]
[421479768,1777741849000,-1880.78,0.00032328,2]
[421479767,1777741849000,-500.0,0.00032328,2]
[421479770,1777741849000,-500.0,0.00032328,2]
[421479769,1777741849000,-500.0,0.00032328,2]
[421479772,1777741849000,-500.0,0.00032328,2]
[421479776,1777741849000,-500.0,0.00032328,2]
[421479778,1777741849000,-500.0,0.00032328,2]
[421479795,1777741849000,-500.0,0.00032328,2]
[421479779,1777741849000,-500.0,0.00032328,2]
[421479771,1777741849000,-8209.36,0.00032328,2]
[421479782,1777741849000,-500.0,0.00032328,2]
[421479777,1777741849000,-628.67,0.00032328,2]
[421479773,1777741849000,-809.7,0.00032328,2]
[421479775,1777741849000,-500.0,0.00032328,2]
[421479781,1777741849000,-500.0,0.00032328,2]
[421479780,1777741849000,-500.0,0.00032328,2]
[421479783,1777741849000,-500.0,0.00032328,2]
[421479784,1777741849000,-500.0,0.00032328,2]
[421479785,1777741849000,-359.29062753,0.00032328,2]
[421479787,1777741849000,-408.93142281,0.00032328,2]
[421479792,1777741849000,-500.0,0.00032328,2]
[421479774,1777741849000,-4990.1,0.00032328,2]
[421479817,1777741849000,-500.0,0.00032328,2]
[421479798,1777741849000,-500.0,0.00032328,2]
[421479820,1777741849000,-500.0,0.00032328,2]
[421479853,1777741849000,-3377.15,0.00032328,2]
[421479848,1777741849000,-500.0,0.00032328,2]
[421479850,1777741849000,-500.0,0.00032328,2]
[421479855,1777741849000,-502.3147513,0.00032328,2]
[421479856,1777741849000,-500.0,0.00032328,2]
[421479860,1777741849000,-500.0,0.00032328,2]
[421479857,1777741849000,-500.0,0.00032328,2]
[421479858,1777741849000,-215.11097561,0.00032328,2]
[421479859,1777741849000,-1696.08,0.00032328,2]
[421479861,1777741849000,-2323.37,0.00032328,2]
[421479863,1777741849000,-500.0,0.00032328,2]
[421479862,1777741849000,-500.0,0.00032328,2]
[421479852,1777741849000,-500.0,0.00032328,2]
[421479864,1777741849000,-500.0,0.00032328,2]
[421479866,1777741849000,-500.0,0.00032328,2]
[421479869,1777741849000,-500.0,0.00032328,2]
[421479867,1777741849000,-500.0,0.00032328,2]
[421479868,1777741849000,-500.0,0.00032328,2]
[421479872,1777741849000,-574.29,0.00032328,2]
[421479874,1777741849000,-1000.51,0.0003234,30]
[421479877,1777741849000,-500.0,0.00032373,5]
[421479873,1777741849000,-186.23,0.00032329,2]
[421479871,1777741849000,-500.0,0.00032328,2]
[421479870,1777741849000,-500.0,0.00032328,2]
[421479876,1777741849000,-500.0,0.00032373,5]
[421479875,1777741849000,-500.0,0.00032373,5]
[421479865,1777741849000,-500.0,0.00032328,2]
[421479849,1777741849000,-500.0,0.00032328,2]
[421479816,1777741849000,-500.0,0.00032328,2]
[421479846,1777741849000,-1263.68,0.00032328,2]
[421479851,1777741849000,-500.0,0.00032328,2]
[421479828,1777741849000,-203.64193226,0.00032328,2]
[421479824,1777741849000,-500.0,0.00032328,2]
[421479822,1777741849000,-500.0,0.00032328,2]
[421479825,1777741849000,-1031.97,0.00032328,2]
[421479830,1777741849000,-500.0,0.00032328,2]
[421479821,1777741849000,-500.0,0.00032328,2]
[421479823,1777741849000,-500.0,0.00032328,2]
[421479827,1777741849000,-1303.46,0.00032328,2]
[421479829,1777741849000,-500.0,0.00032328,2]
[421479832,1777741849000,-500.0,0.00032328,2]
[421479842,1777741849000,-500.0,0.00032328,2]
[421479831,1777741849000,-500.0,0.00032328,2]
[421479826,1777741849000,-500.0,0.00032328,2]
[421479835,1777741849000,-500.0,0.00032328,2]
[421479833,1777741849000,-500.0,0.00032328,2]
[421479845,1777741849000,-500.0,0.00032328,2]
[421479847,1777741849000,-500.0,0.00032328,2]
[421479854,1777741849000,-503.68,0.00032328,2]
[421479844,1777741849000,-500.0,0.00032328,2]
[421479840,1777741849000,-500.0,0.00032328,2]
[421479843,1777741849000,-502.89,0.00032328,2]
[421479839,1777741849000,-500.0,0.00032328,2]
[421479838,1777741849000,-500.0,0.00032328,2]
[421479836,1777741849000,-500.0,0.00032328,2]
[421479837,1777741849000,-500.0,0.00032328,2]
[421479841,1777741849000,-500.0,0.00032328,2]
[421479834,1777741849000,-269.70632077,0.00032328,2]
[421479915,1777741850000,-500.0,0.00032383,2]
[421479909,1777741850000,-566.16,0.00032383,2]
[421479912,1777741850000,-500.0,0.00032383,2]
[421479911,1777741850000,-500.0,0.00032383,2]
[421479906,1777741850000,-500.0,0.00032383,2]
[421479907,1777741850000,-500.0,0.00032383,2]
[421479904,1777741850000,-533.48661872,0.00032383,2]
[421479925,1777741850000,-500.0,0.00032383,2]
[421479905,1777741850000,-500.0,0.00032383,2]
[421479908,1777741850000,-500.0,0.00032383,2]
[421479916,1777741850000,-500.0,0.00032383,2]
[421479921,1777741850000,-500.0,0.00032383,2]
[421479914,1777741850000,-500.0,0.00032383,2]
[421479917,1777741850000,-500.0,0.00032383,2]
[421479919,1777741850000,-500.0,0.00032383,2]
[421479920,1777741850000,-500.0,0.00032383,2]
[421479922,1777741850000,-500.0,0.00032383,2]
[421479918,1777741850000,-500.0,0.00032383,2]
[421479923,1777741850000,-500.0,0.00032383,2]
[421479924,1777741850000,-903.01,0.00032383,2]
[421479927,1777741850000,-573.58,0.00032383,2]
[421479913,1777741850000,-500.0,0.00032383,2]
[421479926,1777741850000,-511.47608252,0.00032383,2]
[421479902,1777741850000,-525.35122203,0.00032383,2]
[421479887,1777741850000,-500.0,0.00032383,2]
[421479899,1777741850000,-500.0,0.00032383,2]
[421479878,1777741850000,-500.0,0.00032373,5]
[421479880,1777741850000,-500.0,0.00032382,2]
[421479879,1777741850000,-500.0,0.00032382,2]
[421479881,1777741850000,-500.0,0.00032383,2]
[421479882,1777741850000,-500.0,0.00032383,2]
[421479883,1777741850000,-500.0,0.00032383,2]
[421479884,1777741850000,-500.0,0.00032383,2]
[421479886,1777741850000,-500.0,0.00032383,2]
[421479888,1777741850000,-500.0,0.00032383,2]
[421479885,1777741850000,-500.0,0.00032383,2]
[421479929,1777741850000,-500.0,0.00032383,2]
[421479889,1777741850000,-500.0,0.00032383,2]
[421479890,1777741850000,-500.0,0.00032383,2]
[421479892,1777741850000,-635.75,0.00032383,2]
[421479895,1777741850000,-500.0,0.00032383,2]
[421479894,1777741850000,-500.0,0.00032383,2]
[421479898,1777741850000,-500.0,0.00032383,2]
[421479900,1777741850000,-500.0,0.00032383,2]
[421479897,1777741850000,-500.0,0.00032383,2]
[421479896,1777741850000,-500.0,0.00032383,2]
[421479891,1777741850000,-500.0,0.00032383,2]
[421479901,1777741850000,-1449.56,0.00032383,2]
[421479893,1777741850000,-500.0,0.00032383,2]
[421479903,1777741850000,-340.9620943,0.00032383,2]
[421479928,1777741850000,-500.0,0.00032383,2]
[421479910,1777741850000,-500.0,0.00032383,2]
[421479932,1777741850000,-529.57,0.00032383,2]
[421479958,1777741850000,-864.15,0.00032383,2]
[421479956,1777741850000,-500.0,0.00032383,2]
[421479961,1777741850000,-500.0,0.00032383,2]
[421479963,1777741850000,-588.68,0.00032383,2]
[421479964,1777741850000,-500.0,0.00032383,2]
[421479962,1777741850000,-500.0,0.00032383,2]
[421479965,1777741850000,-500.0,0.00032383,2]
[421479966,1777741850000,-500.0,0.00032383,2]
[421479970,1777741850000,-500.0,0.00032383,2]
[421479967,1777741850000,-500.0,0.00032383,2]
[421479969,1777741850000,-500.0,0.00032383,2]